[Event "Early-Titled-Tuesday-Blitz-October-03-2023"]
[Site "Chess.com"]
[Date "2023.10.03"]
[Round "5"]
[White "NikolaGry"]
[Black "Grossboss19"]
[Result "1/2-1/2"]
[WhiteElo "2710"]
[BlackElo "2526"]
[TimeControl "180+1"]
[EndTime "8:55:48 PDT"]
[Termination "Game drawn by agreement"]

1. d4 {[%clk 0:03:00.9]} 1... d5 {[%clk 0:02:54.1]} 2. Bg5 {[%clk 0:03:00]} 2...
c5 {[%clk 0:02:52.2]} 3. c3 {[%clk 0:02:54.2]} 3... h6 {[%clk 0:02:47.8]} 4. Bh4
{[%clk 0:02:51]} 4... b6 {[%clk 0:02:38.9]} 5. Nf3 {[%clk 0:02:45.8]} 5... Nc6
{[%clk 0:02:34.6]} 6. e3 {[%clk 0:02:44.7]} 6... Nf6 {[%clk 0:02:23]} 7. Bxf6
{[%clk 0:02:42.7]} 7... exf6 {[%clk 0:02:18.5]} 8. Bb5 {[%clk 0:02:40.1]} 8...
Bb7 {[%clk 0:02:13.7]} 9. Nbd2 {[%clk 0:02:15.1]} 9... a6 {[%clk 0:02:08.9]} 10.
Bd3 {[%clk 0:02:12.1]} 10... Be7 {[%clk 0:02:01.4]} 11. O-O {[%clk 0:02:10.5]}
11... O-O {[%clk 0:02:00.5]} 12. dxc5 {[%clk 0:02:02.7]} 12... bxc5 {[%clk
0:01:58.3]} 13. e4 {[%clk 0:01:58.7]} 13... Ne5 {[%clk 0:01:43.4]} 14. Nxe5
{[%clk 0:01:53.4]} 14... fxe5 {[%clk 0:01:44.3]} 15. exd5 {[%clk 0:01:48.9]}
15... Bxd5 {[%clk 0:01:40.8]} 16. Be4 {[%clk 0:01:46.6]} 16... Rb8 {[%clk
0:01:34.4]} 17. Bxd5 {[%clk 0:01:37.7]} 17... Qxd5 {[%clk 0:01:35.3]} 18. b3
{[%clk 0:01:37.8]} 18... Rfd8 {[%clk 0:01:21.8]} 19. Nc4 {[%clk 0:01:33.7]}
19... Qxd1 {[%clk 0:01:20.1]} 20. Rfxd1 {[%clk 0:01:31.9]} 20... e4 {[%clk
0:01:13.7]} 21. Ne3 {[%clk 0:01:14.6]} 21... Bf6 {[%clk 0:01:09.9]} 22. Nd5
{[%clk 0:01:11.7]} 22... Kf8 {[%clk 0:01:02.2]} 23. Nxf6 {[%clk 0:01:08.3]}
23... gxf6 {[%clk 0:01:01.4]} 24. Kf1 {[%clk 0:01:07.9]} 24... f5 {[%clk
0:01:00.5]} 25. g3 {[%clk 0:01:04.4]} 25... Ke7 {[%clk 0:00:58.3]} 26. Ke2
{[%clk 0:01:03.9]} 26... Rxd1 {[%clk 0:00:51]} 27. Rxd1 {[%clk 0:01:03.3]} 27...
Ke6 {[%clk 0:00:50.7]} 28. Kd2 {[%clk 0:00:53.2]} 28... Rd8+ {[%clk 0:00:33.7]}
29. Kc2 {[%clk 0:00:50.9]} 29... Rxd1 {[%clk 0:00:25.5]} 30. Kxd1 {[%clk
0:00:50.7]} 30... f4 {[%clk 0:00:26.1]} 31. gxf4 {[%clk 0:00:38.5]} 31... Kf5
{[%clk 0:00:26]} 32. b4 {[%clk 0:00:36.9]} 32... cxb4 {[%clk 0:00:25.8]} 33.
cxb4 {[%clk 0:00:34.4]} 33... Kxf4 {[%clk 0:00:26.7]} 34. a4 {[%clk 0:00:24.9]}
34... Ke5 {[%clk 0:00:26.6]} 35. Ke2 {[%clk 0:00:24.7]} 35... f5 {[%clk
0:00:26.3]} 36. f3 {[%clk 0:00:24.3]} 36... Kd4 {[%clk 0:00:19]} 37. fxe4 {[%clk
0:00:23.3]} 37... fxe4 {[%clk 0:00:18]} 38. h4 {[%clk 0:00:21]} 38... Kc4 {[%clk
0:00:17.4]} 39. b5 {[%clk 0:00:21.2]} 39... axb5 {[%clk 0:00:17.6]} 40. axb5
{[%clk 0:00:21.3]} 40... Kxb5 {[%clk 0:00:17.6]} 41. Ke3 {[%clk 0:00:21.7]}
41... Kc5 {[%clk 0:00:18.2]} 42. Kxe4 {[%clk 0:00:22.1]} 42... Kd6 {[%clk
0:00:19.1]} 43. Kf5 {[%clk 0:00:22.2]} 43... Ke7 {[%clk 0:00:20]} 44. Kg6 {[%clk
0:00:22.3]} 44... Kf8 {[%clk 0:00:20.6]} 1/2-1/2

[Event "Early-Titled-Tuesday-Blitz-October-03-2023"]
[Site "Chess.com"]
[Date "2023.10.03"]
[Round "5"]
[White "AniJak"]
[Black "Yushko_Olga"]
[Result "1-0"]
[WhiteElo "2377"]
[BlackElo "2080"]
[TimeControl "180+1"]
[EndTime "8:55:48 PDT"]
[Termination "AniJak won on time"]

1. e4 {[%clk 0:03:00.9]} 1... e6 {[%clk 0:02:59.9]} 2. d4 {[%clk 0:02:59.6]}
2... d5 {[%clk 0:03:00.3]} 3. Nd2 {[%clk 0:02:57.2]} 3... Nf6 {[%clk 0:03:00.6]}
4. e5 {[%clk 0:02:57.2]} 4... Nfd7 {[%clk 0:03:00.8]} 5. Bd3 {[%clk 0:02:57.4]}
5... c5 {[%clk 0:03:01.7]} 6. c3 {[%clk 0:02:57.8]} 6... Nc6 {[%clk 0:03:01.9]}
7. Ne2 {[%clk 0:02:57.8]} 7... Be7 {[%clk 0:03:02.4]} 8. O-O {[%clk 0:02:57.2]}
8... O-O {[%clk 0:03:02.5]} 9. f4 {[%clk 0:02:57.4]} 9... Qb6 {[%clk 0:02:57.1]}
10. Nf3 {[%clk 0:02:54.3]} 10... f6 {[%clk 0:02:48.7]} 11. exf6 {[%clk
0:02:48.8]} 11... Nxf6 {[%clk 0:02:48.6]} 12. Kh1 {[%clk 0:02:37.4]} 12... Bd7
{[%clk 0:02:46.3]} 13. b3 {[%clk 0:02:27.1]} 13... cxd4 {[%clk 0:02:38.6]} 14.
cxd4 {[%clk 0:02:26.9]} 14... Rac8 {[%clk 0:02:38.9]} 15. Be3 {[%clk 0:02:25.7]}
15... Nb4 {[%clk 0:02:24.9]} 16. Bb1 {[%clk 0:02:25.3]} 16... Ne4 {[%clk
0:02:25]} 17. a3 {[%clk 0:02:22.8]} 17... Na6 {[%clk 0:02:18]} 18. Ne5 {[%clk
0:02:21.2]} 18... Bb5 {[%clk 0:02:15.5]} 19. Rf3 {[%clk 0:01:53.5]} 19... Bxe2
{[%clk 0:02:06.2]} 20. Qxe2 {[%clk 0:01:53.3]} 20... Qxb3 {[%clk 0:02:04.2]} 21.
Bg1 {[%clk 0:01:51.6]} 21... Rc3 {[%clk 0:01:54.8]} 22. Bxe4 {[%clk 0:01:44.1]}
22... dxe4 {[%clk 0:01:52.6]} 23. Qxe4 {[%clk 0:01:42.7]} 23... Rxf3 {[%clk
0:01:47.4]} 24. Nxf3 {[%clk 0:01:42.5]} 24... Bxa3 {[%clk 0:01:41.9]} 25. Ng5
{[%clk 0:01:41.3]} 25... Rf5 {[%clk 0:01:11.1]} 26. Nxe6 {[%clk 0:01:28.8]}
26... g6 {[%clk 0:01:11.4]} 27. Ng5 {[%clk 0:01:08.1]} 27... Bf8 {[%clk
0:01:08.2]} 28. g4 {[%clk 0:00:46.2]} 28... Rf6 {[%clk 0:00:51.2]} 29. d5 {[%clk
0:00:45.7]} 29... Nc7 {[%clk 0:00:36.4]} 30. Bd4 {[%clk 0:00:37]} 30... Rd6
{[%clk 0:00:19.1]} 31. Rxa7 {[%clk 0:00:33.7]} 31... Qxd5 {[%clk 0:00:17.6]} 32.
Qxd5+ {[%clk 0:00:31.7]} 32... Rxd5 {[%clk 0:00:10.9]} 33. Be5 {[%clk
0:00:31.9]} 33... Rd1+ {[%clk 0:00:04.2]} 34. Kg2 {[%clk 0:00:31.8]} 34... Rd2+
{[%clk 0:00:03.7]} 35. Kf3 {[%clk 0:00:31.5]} 1-0

[Event "Early-Titled-Tuesday-Blitz-October-03-2023"]
[Site "Chess.com"]
[Date "2023.10.03"]
[Round "5"]
[White "Doudou2015"]
[Black "Heydarli77"]
[Result "0-1"]
[WhiteElo "2173"]
[BlackElo "2322"]
[TimeControl "180+1"]
[EndTime "8:55:49 PDT"]
[Termination "Heydarli77 won by resignation"]

1. b3 {[%clk 0:03:00.9]} 1... d5 {[%clk 0:02:59.5]} 2. Bb2 {[%clk 0:03:01.8]}
2... b6 {[%clk 0:02:57.9]} 3. e3 {[%clk 0:03:01.3]} 3... Bb7 {[%clk 0:02:58.2]}
4. f4 {[%clk 0:03:02]} 4... e6 {[%clk 0:02:57.8]} 5. Nf3 {[%clk 0:03:02.7]} 5...
Nf6 {[%clk 0:02:57.8]} 6. g3 {[%clk 0:03:03.2]} 6... Nbd7 {[%clk 0:02:55.8]} 7.
Bg2 {[%clk 0:03:03.9]} 7... Bd6 {[%clk 0:02:53]} 8. O-O {[%clk 0:03:04.6]} 8...
O-O {[%clk 0:02:52.2]} 9. d3 {[%clk 0:03:05.2]} 9... c5 {[%clk 0:02:49.1]} 10.
Nbd2 {[%clk 0:03:05.5]} 10... Qc7 {[%clk 0:02:46.3]} 11. Qe2 {[%clk 0:03:06]}
11... e5 {[%clk 0:02:44.1]} 12. fxe5 {[%clk 0:03:05.3]} 12... Nxe5 {[%clk
0:02:42.3]} 13. Nxe5 {[%clk 0:03:05.6]} 13... Bxe5 {[%clk 0:02:41.8]} 14. Bxe5
{[%clk 0:03:05.9]} 14... Qxe5 {[%clk 0:02:40.6]} 15. Nf3 {[%clk 0:03:06.8]}
15... Qe7 {[%clk 0:02:37.2]} 16. Nh4 {[%clk 0:03:05.5]} 16... Qe5 {[%clk
0:02:33.3]} 17. Nf5 {[%clk 0:02:51.5]} 17... Rae8 {[%clk 0:02:28.8]} 18. Rae1
{[%clk 0:02:48.6]} 18... g6 {[%clk 0:02:26.4]} 19. Nh6+ {[%clk 0:02:44.8]} 19...
Kg7 {[%clk 0:02:26.2]} 20. Ng4 {[%clk 0:02:45.7]} 20... Nxg4 {[%clk 0:02:23.6]}
21. Qxg4 {[%clk 0:02:46.6]} 21... f5 {[%clk 0:02:21.8]} 22. Qf4 {[%clk
0:02:45.5]} 22... Qc3 {[%clk 0:02:14.5]} 23. Re2 {[%clk 0:02:34.3]} 23... Rf7
{[%clk 0:02:11.4]} 24. e4 {[%clk 0:02:08.1]} 24... dxe4 {[%clk 0:02:08.7]} 25.
Bxe4 {[%clk 0:01:55.3]} 25... Bxe4 {[%clk 0:02:06.3]} 26. dxe4 {[%clk
0:01:51.5]} 26... Qd4+ {[%clk 0:02:04.6]} 27. Kg2 {[%clk 0:01:47.5]} 27... Rxe4
{[%clk 0:02:01.1]} 28. Rxe4 {[%clk 0:01:47]} 28... Qxe4+ {[%clk 0:02:01]} 29.
Qxe4 {[%clk 0:01:47.3]} 29... fxe4 {[%clk 0:02:01.1]} 30. Re1 {[%clk 0:01:47.6]}
30... Re7 {[%clk 0:01:55.6]} 31. Kf2 {[%clk 0:01:47.8]} 31... Kf6 {[%clk
0:01:55.6]} 32. Ke3 {[%clk 0:01:47.3]} 32... Ke5 {[%clk 0:01:54.2]} 33. Rf1
{[%clk 0:01:41.2]} 33... Kd5 {[%clk 0:01:49.2]} 34. Rd1+ {[%clk 0:01:39.1]}
34... Kc6 {[%clk 0:01:47.3]} 35. Rf1 {[%clk 0:01:38.4]} 35... Kb5 {[%clk
0:01:46.8]} 36. a3 {[%clk 0:01:31.2]} 36... c4 {[%clk 0:01:42.9]} 37. Rf4 {[%clk
0:01:28.2]} 37... cxb3 {[%clk 0:01:42]} 38. cxb3 {[%clk 0:01:29.1]} 38... a5
{[%clk 0:01:40.5]} 39. Rxe4 {[%clk 0:01:28.5]} 39... Rxe4+ {[%clk 0:01:39.5]}
40. Kxe4 {[%clk 0:01:29.4]} 40... a4 {[%clk 0:01:39.8]} 41. Kd4 {[%clk
0:00:50.3]} 41... axb3 {[%clk 0:01:38.9]} 42. Kc3 {[%clk 0:00:44.8]} 42... Ka4
{[%clk 0:01:38.6]} 43. Kb2 {[%clk 0:00:43.5]} 43... b5 {[%clk 0:01:37.9]} 44. h3
{[%clk 0:00:26.7]} 44... b4 {[%clk 0:01:30.6]} 45. axb4 {[%clk 0:00:22.8]} 45...
Kxb4 {[%clk 0:01:29.5]} 46. g4 {[%clk 0:00:19.2]} 46... Kc4 {[%clk 0:01:28.8]}
47. h4 {[%clk 0:00:18]} 47... h6 {[%clk 0:01:27.5]} 48. Kb1 {[%clk 0:00:12.4]}
48... Kc3 {[%clk 0:01:23.7]} 49. Kc1 {[%clk 0:00:12.4]} 49... Kd3 {[%clk
0:01:19.9]} 50. Kb2 {[%clk 0:00:12.7]} 50... Ke4 {[%clk 0:01:19.1]} 51. Kxb3
{[%clk 0:00:13.6]} 51... Kf4 {[%clk 0:01:18.8]} 52. g5 {[%clk 0:00:12.6]} 52...
h5 {[%clk 0:01:15.8]} 53. Kc2 {[%clk 0:00:11.3]} 53... Kg4 {[%clk 0:01:15.2]}
54. Kd1 {[%clk 0:00:12.2]} 54... Kxh4 {[%clk 0:01:13.6]} 55. Ke1 {[%clk
0:00:13.1]} 55... Kxg5 {[%clk 0:01:11.7]} 56. Kf1 {[%clk 0:00:14]} 56... Kf4
{[%clk 0:01:11.8]} 57. Kg1 {[%clk 0:00:14.9]} 57... Kg3 {[%clk 0:01:11.6]} 58.
Kh1 {[%clk 0:00:15.1]} 58... Kf2 {[%clk 0:01:11.8]} 59. Kh2 {[%clk 0:00:15]}
59... g5 {[%clk 0:01:12]} 60. Kh1 {[%clk 0:00:14.4]} 60... g4 {[%clk 0:01:12.3]}
61. Kh2 {[%clk 0:00:14.1]} 61... g3+ {[%clk 0:01:12.1]} 62. Kh3 {[%clk
0:00:13.6]} 62... g2 {[%clk 0:01:12.5]} 63. Kh4 {[%clk 0:00:14.1]} 63... g1=Q
{[%clk 0:01:12.1]} 64. Kxh5 {[%clk 0:00:15]} 64... Kf3 {[%clk 0:01:12.2]} 0-1

[Event "Early-Titled-Tuesday-Blitz-October-03-2023"]
[Site "Chess.com"]
[Date "2023.10.03"]
[Round "5"]
[White "Ergali_Suleimen"]
[Black "Hrant_ChessMood"]
[Result "0-1"]
[WhiteElo "2631"]
[BlackElo "2923"]
[TimeControl "180+1"]
[EndTime "8:55:53 PDT"]
[Termination "Hrant_ChessMood won on time"]

1. e4 {[%clk 0:02:56.8]} 1... e5 {[%clk 0:03:00.2]} 2. Nf3 {[%clk 0:02:48.4]}
2... Nc6 {[%clk 0:03:00.2]} 3. Bb5 {[%clk 0:02:44.8]} 3... Nf6 {[%clk
0:03:00.4]} 4. d3 {[%clk 0:02:43.4]} 4... Bd6 {[%clk 0:02:56.5]} 5. Bxc6 {[%clk
0:02:41.8]} 5... dxc6 {[%clk 0:02:56.3]} 6. O-O {[%clk 0:02:40.1]} 6... Nd7
{[%clk 0:02:52.6]} 7. b3 {[%clk 0:02:39]} 7... O-O {[%clk 0:02:52.4]} 8. Bb2
{[%clk 0:02:38.7]} 8... Re8 {[%clk 0:02:52.9]} 9. Nbd2 {[%clk 0:02:37]} 9... Nf8
{[%clk 0:02:52.4]} 10. Nc4 {[%clk 0:02:36.6]} 10... Ng6 {[%clk 0:02:52]} 11. Re1
{[%clk 0:02:31.2]} 11... c5 {[%clk 0:02:48.4]} 12. Ne3 {[%clk 0:02:20.8]} 12...
b6 {[%clk 0:02:42.5]} 13. a4 {[%clk 0:02:02.8]} 13... a5 {[%clk 0:02:42.3]} 14.
Nf5 {[%clk 0:01:59.4]} 14... Bf8 {[%clk 0:02:37.8]} 15. Qd2 {[%clk 0:01:57.4]}
15... f6 {[%clk 0:02:34.2]} 16. Ng3 {[%clk 0:01:47.1]} 16... Nf4 {[%clk
0:02:32.4]} 17. Qe3 {[%clk 0:01:46.3]} 17... Ne6 {[%clk 0:02:30.3]} 18. Rad1
{[%clk 0:01:39.3]} 18... Nd4 {[%clk 0:02:29.8]} 19. Rc1 {[%clk 0:01:25.6]} 19...
Bg4 {[%clk 0:02:26.4]} 20. Nd2 {[%clk 0:01:25]} 20... Qd7 {[%clk 0:02:25.3]} 21.
h3 {[%clk 0:01:21.8]} 21... Be6 {[%clk 0:02:24.8]} 22. f4 {[%clk 0:01:20.3]}
22... exf4 {[%clk 0:02:22.8]} 23. Qxf4 {[%clk 0:01:20.3]} 23... Bd6 {[%clk
0:02:22.8]} 24. Qf2 {[%clk 0:01:20.3]} 24... Be5 {[%clk 0:02:20.4]} 25. Nc4
{[%clk 0:00:43.2]} 25... Bxc4 {[%clk 0:01:52.9]} 26. bxc4 {[%clk 0:00:42.9]}
26... Qxa4 {[%clk 0:01:47.6]} 27. Kh1 {[%clk 0:00:32.5]} 27... Qd7 {[%clk
0:01:45.9]} 28. Bxd4 {[%clk 0:00:17.8]} 28... Qxd4 {[%clk 0:01:44.4]} 29. Qf3
{[%clk 0:00:17.5]} 29... g6 {[%clk 0:01:38.4]} 30. c3 {[%clk 0:00:15.7]} 30...
Qd7 {[%clk 0:01:28.8]} 31. Ne2 {[%clk 0:00:15.6]} 31... Rad8 {[%clk 0:01:26.4]}
32. Rcd1 {[%clk 0:00:15.3]} 32... Qe6 {[%clk 0:01:19.6]} 33. d4 {[%clk
0:00:14.4]} 33... Bd6 {[%clk 0:01:19.9]} 34. d5 {[%clk 0:00:11.7]} 34... Qxe4
{[%clk 0:01:19.4]} 35. Qxf6 {[%clk 0:00:11.7]} 35... Qe5 {[%clk 0:01:06.6]} 36.
Qxe5 {[%clk 0:00:10.8]} 36... Rxe5 {[%clk 0:01:07.5]} 37. Nc1 {[%clk 0:00:08.8]}
37... a4 {[%clk 0:01:05.9]} 38. Nd3 {[%clk 0:00:08.8]} 38... Rxe1+ {[%clk
0:01:04.5]} 39. Rxe1 {[%clk 0:00:09.4]} 39... a3 {[%clk 0:01:02.9]} 40. Ra1
{[%clk 0:00:10]} 40... Ra8 {[%clk 0:01:02.8]} 41. Kg1 {[%clk 0:00:10.6]} 41...
Ra4 {[%clk 0:00:59.6]} 42. Kf2 {[%clk 0:00:09.5]} 42... a2 {[%clk 0:00:54.2]}
43. Ke3 {[%clk 0:00:09.9]} 43... Rxc4 {[%clk 0:00:54.3]} 44. Kd2 {[%clk
0:00:05.8]} 44... Ra4 {[%clk 0:00:54.4]} 45. Kc2 {[%clk 0:00:05.2]} 45... c4
{[%clk 0:00:53.6]} 46. Nc1 {[%clk 0:00:05.5]} 46... Ra5 {[%clk 0:00:52.7]} 47.
Rxa2 {[%clk 0:00:05.7]} 47... Rxd5 {[%clk 0:00:52.6]} 48. Ra4 {[%clk 0:00:05.7]}
48... b5 {[%clk 0:00:52.5]} 49. Ra5 {[%clk 0:00:06]} 49... Bf4 {[%clk
0:00:51.3]} 50. Kb1 {[%clk 0:00:03.4]} 50... Rd1 {[%clk 0:00:50.5]} 0-1

[Event "Early-Titled-Tuesday-Blitz-October-03-2023"]
[Site "Chess.com"]
[Date "2023.10.03"]
[Round "5"]
[White "TERMINATOR_PC"]
[Black "Zohid6"]
[Result "0-1"]
[WhiteElo "2610"]
[BlackElo "2801"]
[TimeControl "180+1"]
[EndTime "8:56:01 PDT"]
[Termination "Zohid6 won by resignation"]

1. e4 {[%clk 0:03:00.9]} 1... e6 {[%clk 0:02:58.7]} 2. d4 {[%clk 0:02:52.7]}
2... d5 {[%clk 0:02:59.6]} 3. exd5 {[%clk 0:02:45.2]} 3... exd5 {[%clk
0:02:00.8]} 4. Bd3 {[%clk 0:02:43.9]} 4... Nc6 {[%clk 0:02:01]} 5. c3 {[%clk
0:02:44.2]} 5... Bd6 {[%clk 0:01:59.4]} 6. Qf3 {[%clk 0:02:44.4]} 6... Nge7
{[%clk 0:01:59.3]} 7. Ne2 {[%clk 0:02:42.8]} 7... O-O {[%clk 0:01:56.6]} 8. Bf4
{[%clk 0:02:39.9]} 8... Ng6 {[%clk 0:01:55.6]} 9. Bxd6 {[%clk 0:02:37.9]} 9...
Qxd6 {[%clk 0:01:56.5]} 10. O-O {[%clk 0:02:37.2]} 10... Re8 {[%clk 0:00:57.3]}
11. Nd2 {[%clk 0:02:32.9]} 11... Bd7 {[%clk 0:00:57.4]} 12. Rfe1 {[%clk
0:02:28.9]} 12... Re6 {[%clk 0:00:54]} 13. Ng3 {[%clk 0:02:22.6]} 13... Rf6
{[%clk 0:00:35.9]} 14. Qe3 {[%clk 0:02:09.3]} 14... Re8 {[%clk 0:00:27.7]} 15.
Qxe8+ {[%clk 0:02:09]} 15... Bxe8 {[%clk 0:00:28.6]} 16. Rxe8+ {[%clk
0:02:09.2]} 16... Nf8 {[%clk 0:00:27.8]} 17. Rae1 {[%clk 0:01:43.7]} 17... Re6
{[%clk 0:00:24.9]} 18. R8xe6 {[%clk 0:01:43.6]} 18... fxe6 {[%clk 0:00:25.8]}
19. Nf3 {[%clk 0:01:42.6]} 19... a6 {[%clk 0:00:21.3]} 20. h4 {[%clk 0:01:35.2]}
20... g6 {[%clk 0:00:17.5]} 21. h5 {[%clk 0:01:34.8]} 21... Kg7 {[%clk
0:00:17.9]} 22. hxg6 {[%clk 0:01:33.9]} 22... hxg6 {[%clk 0:00:18.8]} 23. Nd2
{[%clk 0:01:27.2]} 23... Nd7 {[%clk 0:00:19.2]} 24. Nf3 {[%clk 0:01:22.8]} 24...
e5 {[%clk 0:00:19.3]} 25. dxe5 {[%clk 0:01:23.1]} 25... Ndxe5 {[%clk 0:00:20.2]}
26. Nxe5 {[%clk 0:01:23.7]} 26... Nxe5 {[%clk 0:00:20.9]} 27. Be2 {[%clk
0:01:24.2]} 27... Qf6 {[%clk 0:00:20.6]} 28. Nf1 {[%clk 0:01:22.6]} 28... c6
{[%clk 0:00:20.8]} 29. Ne3 {[%clk 0:01:21]} 29... Qf4 {[%clk 0:00:21.1]} 30. g3
{[%clk 0:01:20.8]} 30... Nf3+ {[%clk 0:00:21.3]} 31. Bxf3 {[%clk 0:01:20.7]}
31... Qxf3 {[%clk 0:00:22.2]} 32. Kf1 {[%clk 0:01:17.6]} 32... c5 {[%clk
0:00:21.6]} 33. Rd1 {[%clk 0:01:16.2]} 33... Qh1+ {[%clk 0:00:19.3]} 34. Ke2
{[%clk 0:01:16.3]} 34... Qh5+ {[%clk 0:00:19.2]} 35. g4 {[%clk 0:01:16.5]} 35...
Qe5 {[%clk 0:00:18.4]} 36. Rxd5 {[%clk 0:01:16.7]} 36... Qe7 {[%clk 0:00:19.3]}
37. g5 {[%clk 0:01:15.7]} 37... c4 {[%clk 0:00:19]} 38. Kf1 {[%clk 0:01:15.2]}
38... b5 {[%clk 0:00:19]} 39. Ke2 {[%clk 0:01:11.7]} 39... Kf7 {[%clk
0:00:19.2]} 40. f4 {[%clk 0:01:08.7]} 40... Qe4 {[%clk 0:00:19.2]} 41. Rd4
{[%clk 0:01:09.2]} 41... Qb1 {[%clk 0:00:18.7]} 42. Rd2 {[%clk 0:01:07.7]} 42...
Qxa2 {[%clk 0:00:19.2]} 43. Ng4 {[%clk 0:01:07.5]} 43... Qb1 {[%clk 0:00:19.2]}
44. Ne5+ {[%clk 0:01:06.7]} 44... Ke6 {[%clk 0:00:19.7]} 45. Ke3 {[%clk
0:01:05.6]} 45... Kf5 {[%clk 0:00:20.1]} 46. Nf3 {[%clk 0:01:05.2]} 46... Qe4+
{[%clk 0:00:20.5]} 47. Kf2 {[%clk 0:01:05.7]} 47... Qxf4 {[%clk 0:00:19.9]} 48.
Rd4 {[%clk 0:01:03.1]} 48... Qc1 {[%clk 0:00:19.5]} 49. Rd5+ {[%clk 0:01:00.1]}
49... Ke6 {[%clk 0:00:19.8]} 50. Re5+ {[%clk 0:01:00.5]} 50... Kd6 {[%clk
0:00:19.9]} 51. Re2 {[%clk 0:01:01]} 51... a5 {[%clk 0:00:19.7]} 52. Kg3 {[%clk
0:00:57.5]} 52... b4 {[%clk 0:00:19.5]} 53. cxb4 {[%clk 0:00:57.8]} 53... axb4
{[%clk 0:00:20.4]} 54. Kf2 {[%clk 0:00:57.5]} 54... c3 {[%clk 0:00:20.7]} 55.
bxc3 {[%clk 0:00:52.3]} 55... Qxc3 {[%clk 0:00:21.6]} 56. Nd2 {[%clk 0:00:51.3]}
56... Qd4+ {[%clk 0:00:20.4]} 57. Kf3 {[%clk 0:00:50.7]} 57... b3 {[%clk
0:00:20.3]} 58. Nxb3 {[%clk 0:00:50.6]} 58... Qd5+ {[%clk 0:00:20.5]} 59. Kf4
{[%clk 0:00:49.4]} 59... Qxb3 {[%clk 0:00:20.6]} 60. Re4 {[%clk 0:00:49.6]}
60... Qd5 {[%clk 0:00:20.4]} 61. Re3 {[%clk 0:00:49.1]} 61... Qf5+ {[%clk
0:00:21]} 0-1

[Event "Early-Titled-Tuesday-Blitz-October-03-2023"]
[Site "Chess.com"]
[Date "2023.10.03"]
[Round "5"]
[White "OchsenfroschGambit"]
[Black "GeorgiosSouleidis"]
[Result "1/2-1/2"]
[WhiteElo "2440"]
[BlackElo "2598"]
[TimeControl "180+1"]
[EndTime "8:56:03 PDT"]
[Termination "Game drawn by repetition"]

1. e4 {[%clk 0:02:54.1]} 1... c5 {[%clk 0:02:59.9]} 2. Nf3 {[%clk 0:02:53.7]}
2... e6 {[%clk 0:03:00.2]} 3. c4 {[%clk 0:02:50.5]} 3... Nc6 {[%clk 0:02:59.9]}
4. Nc3 {[%clk 0:02:49]} 4... Nd4 {[%clk 0:02:47.7]} 5. Bd3 {[%clk 0:02:47.1]}
5... Ne7 {[%clk 0:02:47.1]} 6. Nxd4 {[%clk 0:02:43.8]} 6... cxd4 {[%clk
0:02:47.6]} 7. Ne2 {[%clk 0:02:44.4]} 7... Nc6 {[%clk 0:02:47.7]} 8. O-O {[%clk
0:02:36.1]} 8... Bc5 {[%clk 0:02:40.6]} 9. a3 {[%clk 0:02:34.9]} 9... a5 {[%clk
0:02:40.6]} 10. Ng3 {[%clk 0:02:19.9]} 10... O-O {[%clk 0:02:30.1]} 11. Be2
{[%clk 0:02:04.1]} 11... d5 {[%clk 0:02:15]} 12. cxd5 {[%clk 0:01:57.4]} 12...
exd5 {[%clk 0:02:15.9]} 13. exd5 {[%clk 0:01:57.4]} 13... Qxd5 {[%clk
0:02:15.1]} 14. Bf3 {[%clk 0:01:55.4]} 14... Qd8 {[%clk 0:02:05.5]} 15. d3
{[%clk 0:01:54.2]} 15... Be6 {[%clk 0:02:01.8]} 16. Bf4 {[%clk 0:01:52.8]} 16...
Re8 {[%clk 0:01:56.2]} 17. Rc1 {[%clk 0:01:52.4]} 17... Bd6 {[%clk 0:01:46.5]}
18. Qd2 {[%clk 0:01:49]} 18... Qb8 {[%clk 0:01:33.1]} 19. Bxd6 {[%clk
0:01:47.5]} 19... Qxd6 {[%clk 0:01:34]} 20. Ne4 {[%clk 0:01:46.8]} 20... Qe7
{[%clk 0:01:10.1]} 21. Nc5 {[%clk 0:01:42.6]} 21... Rab8 {[%clk 0:00:48.6]} 22.
Rfe1 {[%clk 0:01:30.3]} 22... Qf6 {[%clk 0:00:45.1]} 23. Nxb7 {[%clk 0:01:16]}
23... Ne5 {[%clk 0:00:45.4]} 24. Be4 {[%clk 0:01:14.3]} 24... Bf5 {[%clk
0:00:20.5]} 25. Nxa5 {[%clk 0:00:53.5]} 25... Bxe4 {[%clk 0:00:20.3]} 26. Rxe4
{[%clk 0:00:54.2]} 26... Qg6 {[%clk 0:00:18.5]} 27. Qe2 {[%clk 0:00:50.5]} 27...
f6 {[%clk 0:00:13.5]} 28. Re1 {[%clk 0:00:42.2]} 28... Rec8 {[%clk 0:00:11.8]}
29. f4 {[%clk 0:00:38.2]} 29... Nd7 {[%clk 0:00:09.8]} 30. Re7 {[%clk
0:00:35.5]} 30... Nf8 {[%clk 0:00:09.4]} 31. Nc4 {[%clk 0:00:34.1]} 31... h5
{[%clk 0:00:07.3]} 32. Qe4 {[%clk 0:00:30]} 32... Qg4 {[%clk 0:00:05.8]} 33. h3
{[%clk 0:00:24.5]} 33... Qg3 {[%clk 0:00:05.8]} 34. Qe2 {[%clk 0:00:20.4]} 34...
h4 {[%clk 0:00:05]} 35. Qf2 {[%clk 0:00:20.4]} 35... Qxf2+ {[%clk 0:00:04.5]}
36. Kxf2 {[%clk 0:00:21.3]} 36... Ng6 {[%clk 0:00:04.7]} 37. Rd7 {[%clk
0:00:20.6]} 37... Nxf4 {[%clk 0:00:04.5]} 38. Ree7 {[%clk 0:00:20.2]} 38...
Nxd3+ {[%clk 0:00:04.1]} 39. Kf3 {[%clk 0:00:18.9]} 39... Rxc4 {[%clk
0:00:04.5]} 40. Rxg7+ {[%clk 0:00:18.1]} 40... Kh8 {[%clk 0:00:05]} 41. Rh7+
{[%clk 0:00:18.2]} 41... Kg8 {[%clk 0:00:05.6]} 42. Rhg7+ {[%clk 0:00:17.7]}
42... Kh8 {[%clk 0:00:06]} 43. Rh7+ {[%clk 0:00:16.8]} 43... Kg8 {[%clk
0:00:06.5]} 44. Rhg7+ {[%clk 0:00:16.1]} 1/2-1/2